fUST/lending_fUST_20250117
["ID","MTS","AMOUNT","RATE_DAILY","PERIOD"]
[349254358,1737077438577,-215.0156227,0.000199,2]
[349254359,1737077438587,-154.12,0.000199,2]
[349254360,1737077438598,-215.0156227,0.000199,2]
[349254361,1737077438608,-153.3817337,0.000199,2]
[349254362,1737077438618,-220.18760168,0.000199,2]
[349254363,1737077438629,-500.0,0.00019973,2]
[349254364,1737077438638,-500.0,0.00019999,2]
[349254365,1737077438648,-500.0,0.00019999,2]
[349254367,1737077438658,-293.99061233,0.00019999,2]
[349254368,1737077438668,-500.0,0.00019999,2]
[349254370,1737077438679,-500.0,0.00019999,2]
[349254372,1737077438689,-500.0,0.00019999,2]
[349254374,1737077438698,-582.60254858,0.00019999,2]
[349254375,1737077438708,-500.0,0.00019999,2]
[349254376,1737077438718,-500.0,0.00019999,2]
[349254377,1737077438728,-500.0,0.00019999,2]
[349254378,1737077438738,-500.0,0.00019999,2]
[349254379,1737077438747,-500.0,0.00019999,2]
[349254380,1737077438756,-500.0,0.00019999,2]
[349254381,1737077438766,-612.53320009,0.00019999,2]
[349254382,1737077438776,-500.0,0.00019999,2]
[349254383,1737077438785,-500.0,0.00019999,2]
[349254384,1737077438795,-500.0,0.00019999,2]
[349254385,1737077438804,-500.0,0.00019999,2]
[349254386,1737077438814,-500.0,0.00019999,2]
[349254387,1737077438824,-500.0,0.00019999,2]
[349254388,1737077438833,-500.0,0.00019999,2]
[349254389,1737077438843,-500.0,0.00019999,2]
[349254390,1737077438852,-500.0,0.00019999,2]
[349254391,1737077438861,-500.0,0.00019999,2]
[349254392,1737077438870,-500.0,0.00019999,2]
[349254393,1737077438880,-500.0,0.00019999,2]
[349254394,1737077438889,-500.0,0.00019999,2]
[349254395,1737077438899,-500.0,0.00019999,2]
[349254396,1737077438911,-312.31136413,0.00019999,2]
[349254397,1737077438921,-500.0,0.00019999,2]
[349254398,1737077438931,-500.0,0.00019999,2]
[349254399,1737077438943,-500.0,0.00019999,2]
[349254400,1737077438953,-500.0,0.00019999,2]
[349254401,1737077438963,-500.0,0.00019999,2]
[349254402,1737077438972,-500.0,0.00019999,2]
[349254403,1737077438983,-500.0,0.00019999,2]
[349254404,1737077438993,-500.0,0.00019999,2]
[349254405,1737077439002,-500.0,0.00019999,2]
[349254406,1737077439012,-500.0,0.00019999,2]
[349254407,1737077439021,-500.0,0.00019999,2]
[349254408,1737077439031,-500.0,0.00019999,2]
[349254409,1737077439042,-500.0,0.00019999,2]
[349254410,1737077439054,-500.0,0.00019999,2]
[349254411,1737077439067,-500.0,0.00019999,2]
[349254412,1737077439076,-500.0,0.00019999,2]
[349254413,1737077439086,-500.0,0.00019999,2]
[349254414,1737077439095,-500.0,0.00019999,2]
[349254415,1737077439104,-500.0,0.00019999,2]
[349254416,1737077439114,-500.0,0.00019999,2]
[349254417,1737077439123,-500.0,0.00019999,2]
[349254418,1737077439133,-500.0,0.00019999,2]
[349254419,1737077439142,-500.0,0.00019999,2]
[349254420,1737077439151,-500.0,0.00019999,2]
[349254421,1737077439161,-500.0,0.00019999,2]
[349254422,1737077439170,-500.0,0.00019999,2]
[349254423,1737077439179,-500.0,0.00019999,2]
[349254424,1737077439189,-500.0,0.00019999,2]
[349254425,1737077439198,-500.0,0.00019999,2]
[349254426,1737077439207,-203.96598459,0.00019999,2]
[349254427,1737077439216,-500.0,0.00019999,2]
[349254428,1737077439225,-500.0,0.00019999,2]
[349254429,1737077439235,-500.0,0.00019999,2]
[349254430,1737077439244,-12168.95419064,0.0002,5]
[349254431,1737077439257,-4386.9978675,0.0002,5]
[349254432,1737077439268,-89072.81072083,0.0002,5]
[349254433,1737077439277,-2196.0,0.0002,2]
[349254434,1737077439287,-309.054118,0.0002,3]
[349254435,1737077439296,-3301.33547502,0.0002,5]
[349254436,1737077439306,-11887.19524145,0.0002,5]
[349254467,1737077443407,-55172.22232468,0.0002,5]
[349254790,1737077446451,-4208.41080883,0.0002,5]
[349255654,1737077632424,500.0,0.00025,120]
[349255655,1737077651062,500.0,0.00024,120]
[349255656,1737077673346,2935.0,0.00025,120]
[349255657,1737077683082,158.014429,0.0002411,120]
[349255658,1737077775995,-1178.28572192,0.00018711,2]
[349255659,1737077776019,-1178.28572192,0.000189,2]
[349255660,1737077776045,-489.0,0.00019999,2]
[349255661,1737077776071,-773.09594112,0.0002,5]
[349255662,1737077776097,-46381.33261504,0.0002,5]
[349255675,1737078225526,235.048987,0.00013973,2]
[349255676,1737078259772,278.183,0.00025,120]
[349255727,1737078526723,2621.1170621,0.00025,120]
[349255730,1737078551094,-1327.3395233,0.00018089,2]
[349255936,1737078637072,-227.52937229,0.00018089,2]
[349255937,1737078637082,-606.65159052,0.00018194,3]
[349255938,1737078637091,-3231.2454345,0.00018272,2]
[349255939,1737078637101,-272.106742,0.00018371,2]
[349255941,1737078637112,-19700.0,0.00018577,2]
[349255943,1737078637122,-300.0,0.00018578,2]
[349255945,1737078637132,-7089.1919971,0.00018579,2]
[349255947,1737078637142,-282.43338757,0.00018797,2]
[349255949,1737078637152,-374.72889928,0.000188,2]
[349255951,1737078637162,-1239.46411708,0.000189,2]
[349255953,1737078637171,-504.58,0.00019,2]
[349255955,1737078637179,-282.43338754,0.00019475,2]
[349255957,1737078637187,-152.65635457,0.0001988,2]
[349255959,1737078637195,-153.48,0.00019999,2]
[349255960,1737078637204,-167.658,0.00019999,2]
[349255962,1737078637213,-297.33167361,0.00019999,2]
[349255964,1737078637222,-1018.07069261,0.0002,5]
[349255967,1737078637234,-600.89151516,0.0002,5]
[349255969,1737078637249,-302.0,0.0002,5]
[349255972,1737078637261,-646.87891571,0.0002,5]
[349255974,1737078637277,-6833.6468003,0.0002,5]
[349256022,1737078639046,-296.78127136,0.0002,5]
[349256023,1737078639058,-55159.77049658,0.0002,5]
[349256024,1737078639070,-13240.6545719,0.0002,5]
[349256200,1737078643708,-3925.91632643,0.0002,5]
[349256234,1737078644076,-20079.221,0.0002,5]
[349256266,1737078645103,-1403.97954598,0.0002,5]
[349256430,1737078646775,-1245.27564286,0.00019985,2]
[349256432,1737078646787,-22.36791344,0.00019985,2]
[349256435,1737078646797,-82375.33100475,0.0002,5]
[349256437,1737078646807,-282.43338754,0.00020153,2]
[349256438,1737078646816,-500.0,0.00020169,2]
[349256439,1737078646825,-150.0,0.000202,2]
[349256440,1737078646835,-420.0,0.00020259,2]
[349256441,1737078646845,-620.0,0.000203,2]
[349256443,1737078646854,-235.048987,0.00020447,2]
[349256445,1737078646864,-172.07668,0.00020521,2]
[349256447,1737078646873,-634.234027,0.00020721,2]
[349256449,1737078646882,-282.43338754,0.00020831,2]
[349256451,1737078646891,-1039.8699791,0.000209,2]
[349256452,1737078646901,-3000.0,0.00021,2]
[349256453,1737078646910,-4091.79224467,0.00021,30]
[349256455,1737078646919,-1039.86997895,0.00021003,2]
[349256457,1737078646929,-3000.0,0.0002101,2]
[349256459,1737078646939,-3000.0,0.0002102,2]
[349256461,1737078646948,-3000.0,0.0002103,2]
[349256463,1737078646958,-3000.0,0.0002104,2]
[349256465,1737078646967,-3000.0,0.0002105,2]
[349256467,1737078646977,-3000.0,0.0002106,2]
[349256469,1737078646987,-3000.0,0.0002107,2]
[349256471,1737078646996,-5506.598706,0.0002108,2]
[349256473,1737078647006,-172.07668,0.00021096,2]
[349256475,1737078647015,-1039.86997895,0.00021107,2]
[349256477,1737078647025,-253.222,0.00021142,2]
[349256479,1737078647035,-582.938,0.00021142,2]
[349256481,1737078647044,-2168.209,0.00021142,2]
[349256483,1737078647053,-2344.822,0.00021142,2]
[349256485,1737078647063,-397.156,0.00021142,2]
[349256487,1737078647074,-1039.86997895,0.0002121,2]
[349256489,1737078647084,-1039.86997895,0.00021314,2]
[349256491,1737078647094,-1039.86997895,0.00021417,2]
[349256493,1737078647103,-150.0,0.00021486,2]
[349256495,1737078647113,-282.43338754,0.00021508,2]
[349256497,1737078647122,-1039.86997895,0.00021521,2]
[349256499,1737078647132,-2196.0,0.000216,4]
[349256502,1737078647142,-1039.86997895,0.00021624,3]
[349256504,1737078647151,-300.0,0.000217,9]
[349256506,1737078647161,-151.0,0.000217,3]
[349256507,1737078647170,-1039.86997895,0.00021728,3]
[349256509,1737078647180,-1039.86997895,0.00021831,3]
[349256511,1737078647189,-4474.84429233,0.00021889,5]
[349256513,1737078647198,-20172.64296332,0.0002189,5]
[349256515,1737078647207,-9545.37262414,0.0002189,3]
[349256517,1737078647217,-500.0,0.00021916,2]
[349256519,1737078647226,-500.0,0.00021916,2]
[349256521,1737078647236,-500.0,0.00021916,2]
[349256523,1737078647245,-500.0,0.00021916,2]
[349256525,1737078647254,-500.0,0.00021916,2]
[349256527,1737078647264,-500.0,0.00021916,2]
[349256529,1737078647273,-500.0,0.00021916,2]
[349256531,1737078647285,-500.0,0.00021916,2]
[349256533,1737078647295,-500.0,0.00021916,2]
[349256535,1737078647304,-500.0,0.00021916,2]
[349256537,1737078647314,-500.0,0.00021916,2]
[349256539,1737078647324,-220.7936883,0.00021916,2]
[349256541,1737078647334,-500.0,0.00021916,2]
[349256543,1737078647344,-500.0,0.00021916,2]
[349256545,1737078647356,-500.0,0.00021916,2]
[349256547,1737078647366,-500.0,0.00021916,2]
[349256549,1737078647375,-601.7395358,0.00021916,2]
[349256550,1737078647384,-500.0,0.00021916,2]
[349256552,1737078647393,-500.0,0.00021916,2]
[349256554,1737078647403,-470.58114572,0.00021916,2]
[349256556,1737078647411,-500.0,0.00021916,2]
[349256558,1737078647421,-500.0,0.00021916,2]
[349256560,1737078647431,-500.0,0.00021916,2]
[349256562,1737078647440,-500.0,0.00021916,2]
[349256564,1737078647450,-500.0,0.00021916,2]
[349256566,1737078647460,-500.0,0.00021917,3]
[349256568,1737078647469,-500.0,0.00021917,3]
[349256570,1737078647479,-500.0,0.00021917,3]
[349256572,1737078647489,-500.0,0.00021917,3]
[349256574,1737078647498,-511.21108364,0.00021917,3]
[349256576,1737078647508,-460.62405417,0.00021917,3]
[349256578,1737078647517,-18101.56,0.00021917,3]
[349256580,1737078647526,-335.93607242,0.00021917,3]
[349256582,1737078647535,-188.65461865,0.00021917,2]
[349256584,1737078647545,-500.0,0.00021917,3]
[349256586,1737078647554,-506.66327145,0.00021917,3]
[349256588,1737078647563,-520.54600499,0.00021917,3]
[349256590,1737078647573,-161.14374168,0.00021917,3]
[349256592,1737078647583,-507.83435054,0.00021917,3]
[349256594,1737078647593,-526.1932979,0.00021917,3]
[349256595,1737078647602,-516.40904948,0.00021917,3]
[349256596,1737078647612,-220.23950787,0.00021917,3]
[349256597,1737078647623,-503.25669096,0.00021917,3]
[349256598,1737078647632,-501.29612347,0.00021917,2]
[349256599,1737078647641,-156.55893507,0.00021917,3]
[349256600,1737078647651,-503.14773963,0.00021917,3]
[349256601,1737078647661,-500.0,0.00021917,2]
[349256602,1737078647671,-505.2758998,0.00021917,3]
[349256603,1737078647682,-581.28853705,0.00021917,3]
[349256604,1737078647691,-500.0,0.00021917,3]
[349256605,1737078647701,-501.64334652,0.00021917,2]
[349256606,1737078647710,-500.0,0.00021917,3]
[349256607,1737078647719,-508.23381555,0.00021917,3]
[349256608,1737078647730,-502.43486828,0.00021917,3]
[349256609,1737078647740,-506.8613934,0.00021917,3]
[349256610,1737078647749,-500.0,0.00021917,3]
[349256611,1737078647758,-500.0,0.00021917,3]
[349256612,1737078647767,-500.0,0.00021917,3]
[349256613,1737078647778,-505.30615498,0.00021917,3]
[349256614,1737078647787,-500.0,0.00021917,3]
[349256615,1737078647797,-621.7870154,0.00021917,2]
[349256616,1737078647807,-389.17139376,0.00021917,3]
[349256617,1737078647817,-500.0,0.00021917,3]
[349256618,1737078647827,-399.70999054,0.00021917,7]
[349256619,1737078647901,-600.29000946,0.00021917,7]
[349256620,1737078647911,-23274.21,0.00021917,3]
[349256622,1737078647920,-502.15803703,0.00021917,3]
[349256624,1737078647930,-502.36143707,0.00021917,3]
[349256626,1737078647940,-500.0,0.00021917,2]
[349256628,1737078647950,-6656.66,0.00021917,3]
[349256630,1737078647959,-1039.86997895,0.00021934,3]
[349256632,1737078647969,-70612.41912347,0.0002199,7]
[349256716,1737079119335,229.594088,0.00013973,2]
[349256717,1737079388892,158.014429,0.0002411,120]
[349256718,1737079530430,586.9942288,0.00025,120]
[349256793,1737079832948,-272.1067427,0.00019128,2]
[349256795,1737079832958,-272.1067427,0.00019517,2]
[349256798,1737079832968,-1486.3865146,0.00019555,2]
[349256800,1737079832980,-1068.4243754,0.00019555,2]
[349256802,1737079832989,-300.0,0.0001993,2]
[349256804,1737079832999,-21353.0557948,0.00019931,2]
[349256806,1737079833009,-67.02010965,0.00020169,2]
[349256860,1737079838818,-435.58901289,0.00020169,2]
[349256861,1737079838828,-1971.0,0.00020274,2]
[349256862,1737079838838,-229.594088,0.00020447,2]
[349256863,1737079838859,-168.3707746,0.00020606,2]
[349256864,1737079838871,-542.0,0.000208,2]
[349256865,1737079838881,-168.809,0.0002083,2]
[349256866,1737079838891,-524.863,0.0002083,2]
[349256867,1737079838900,-199.8272869,0.000209,2]
[349256868,1737079838910,-4525.925442,0.00021,2]
[349256869,1737079838920,-861.28482772,0.00021,2]
[349256870,1737079838930,-199.82728685,0.0002128,2]
[349256871,1737079838941,-536.0,0.00021334,2]
[349256872,1737079838951,-2069.0,0.00021334,2]
[349256873,1737079838961,-2311.0,0.00021334,2]
[349256874,1737079838971,-395.0,0.00021334,2]
[349256875,1737079838982,-199.82728685,0.0002166,2]
[349256876,1737079838993,-10054.30920472,0.00021674,2]
[349256877,1737079839003,-420.0,0.00021703,2]
[349256878,1737079839014,-193.22057756,0.00021817,2]
[349256879,1737079839024,-1971.0,0.00021896,4]
[349256880,1737079839034,-3970.01229264,0.000219,3]
[349256881,1737079839046,-300.0,0.000219,9]
[349256882,1737079839056,-658.58432005,0.000219,3]
[349256883,1737079839066,-504.89699431,0.00021917,3]
[349256884,1737079839076,-503.73558647,0.00021917,3]
[349256885,1737079839086,-501.24703539,0.00021917,3]
[349256886,1737079839096,-501.88086454,0.00021917,3]
[349256887,1737079839107,-501.3499778,0.00021917,3]
[349256888,1737079839124,-513.04465298,0.00021917,3]
[349256889,1737079839277,-502.3326154,0.00021917,3]
[349256890,1737079839288,-500.0,0.00021917,3]
[349256891,1737079839298,-500.0,0.00021917,3]
[349256892,1737079839308,-500.0,0.00021917,3]
[349256893,1737079839318,-506.64307329,0.00021917,3]
[349256894,1737079839327,-515.67331703,0.00021917,3]
[349256895,1737079839338,-508.20020267,0.00021917,3]
[349256896,1737079839348,-506.77639713,0.00021917,3]
[349256897,1737079839357,-500.0,0.00021917,2]
[349256898,1737079839369,-646.97757406,0.00021917,3]
[349256899,1737079839380,-395.94578214,0.00021917,3]
[349256900,1737079839389,-500.0,0.00021917,3]
[349256901,1737079839399,-509.27314694,0.00021917,3]
[349256902,1737079839408,-239.6582605,0.00021917,3]
[349256903,1737079839420,-507.27374782,0.00021917,3]
[349256904,1737079839430,-510.25166752,0.00021917,3]
[349256905,1737079839439,-500.0,0.00021917,3]
[349256906,1737079839449,-500.0,0.00021917,3]
[349256907,1737079839458,-500.0,0.00021917,3]
[349256908,1737079839468,-511.18116725,0.00021917,3]
[349256909,1737079839477,-578.14,0.00021917,3]
[349256910,1737079839486,-569.32722538,0.00021917,3]
[349256911,1737079839496,-500.0,0.00021917,3]
[349256912,1737079839505,-500.0,0.00021917,3]
[349256913,1737079839515,-500.0,0.00021917,3]
[349256914,1737079839524,-506.76654355,0.00021917,3]
[349256915,1737079839533,-513.18843932,0.00021917,3]
[349256916,1737079839542,-437.31509216,0.00021917,3]
[349256917,1737079839553,-505.77045773,0.00021917,3]
[349256918,1737079839561,-511.48462914,0.00021917,3]
[349256919,1737079839571,-516.84511798,0.00021917,3]
[349256920,1737079839580,-500.0,0.00021917,3]
[349256921,1737079839590,-459.21116033,0.00021917,3]
[349256922,1737079839600,-506.71328635,0.00021917,3]
[349256923,1737079839610,-508.36949745,0.00021917,3]
[349256924,1737079839627,-506.60640017,0.00021917,3]
[349256925,1737079839636,-500.0,0.00021917,2]
[349256926,1737079839647,-506.01432036,0.00021917,3]
[349256927,1737079839658,-524.14956246,0.00021917,3]
[349256928,1737079839670,-539.88328737,0.00021917,3]
[349256929,1737079839679,-500.0,0.00021917,3]
[349256930,1737079839689,-508.89857869,0.00021917,3]
[349256931,1737079839699,-509.39249629,0.00021917,3]
[349256932,1737079839708,-508.99483123,0.00021917,3]
[349256933,1737079839717,-510.44645587,0.00021917,3]
[349256934,1737079839729,-506.23399805,0.00021917,3]
[349256935,1737079839739,-508.10843037,0.00021917,3]
[349256936,1737079839748,-1456.4,0.00021917,3]
[349256937,1737079839758,-1456.4,0.00021917,3]
[349256938,1737079839768,-1456.4,0.00021917,3]
[349256939,1737079839777,-17753.15,0.00021917,3]
[349256940,1737079839786,-517.6413981,0.00021917,3]
[349256941,1737079839795,-516.01074739,0.00021917,3]
[349256942,1737079839805,-507.15181702,0.00021917,3]
[349256943,1737079839814,-508.21533255,0.00021917,3]
[349256944,1737079839823,-625.47644429,0.00021917,3]
[349256945,1737079839833,-571.48830275,0.00021917,3]
[349256946,1737079839843,-514.57702449,0.00021917,3]
[349256947,1737079839852,-387.42115415,0.00021917,3]
[349256948,1737079839862,-512.01224298,0.00021917,3]
[349256949,1737079839877,-524.34364891,0.00021917,3]
[349256950,1737079839887,-506.70636135,0.00021917,3]
[349256951,1737079839896,-504.41804618,0.00021917,3]
[349256952,1737079839905,-508.56328774,0.00021917,3]
[349256953,1737079839915,-500.0,0.00021917,2]
[349256954,1737079839924,-636.66035688,0.00021917,3]
[349256955,1737079839934,-507.99646454,0.00021917,3]
[349256956,1737079839944,-510.05134343,0.00021917,3]
[349256957,1737079839953,-519.90639131,0.00021917,3]
[349256958,1737079839963,-511.77520864,0.00021917,3]
[349256959,1737079839972,-482.35199767,0.00021917,3]
[349256960,1737079839981,-500.0,0.00021917,3]
[349256961,1737079839991,-424.95199054,0.00021917,3]
[349256962,1737079840000,-503.9159391,0.00021917,3]
[349256963,1737079840010,-508.50080203,0.00021917,3]
[349256964,1737079840019,-505.36502134,0.00021917,3]
[349256965,1737079840029,-609.25178525,0.00021917,3]
[349256966,1737079840039,-505.7812468,0.00021917,3]
[349256967,1737079840048,-500.0,0.00021917,3]
[349256968,1737079840058,-513.65336266,0.00021917,3]
[349256969,1737079840067,-500.0,0.00021917,3]
[349256970,1737079840077,-506.02831728,0.00021917,3]
[349256971,1737079840086,-21.94535258,0.00021917,3]
[349256972,1737079840100,-492.1841983,0.00021917,3]
[349256974,1737079840109,-292.86301426,0.00021917,3]
[349256975,1737079840123,-226.52785725,0.00021917,3]
[349256976,1737079840133,-516.10599631,0.00021917,3]
[349256977,1737079840142,-509.89642439,0.00021917,3]
[349256978,1737079840151,-505.61327145,0.00021917,3]
[349256979,1737079840161,-506.34966394,0.00021917,3]
[349256980,1737079840171,-500.0,0.00021917,3]
[349256981,1737079840180,-500.0,0.00021917,3]
[349256982,1737079840190,-516.17005179,0.00021917,3]
[349256983,1737079840199,-515.36453657,0.00021917,3]
[349256984,1737079840209,-500.0,0.00021917,3]
[349256985,1737079840218,-500.0,0.00021917,3]
[349256986,1737079840227,-505.13477354,0.00021917,3]
[349256987,1737079840237,-605.25915844,0.00021917,3]
[349256988,1737079840247,-511.84265588,0.00021917,3]
[349256989,1737079840257,-505.89071778,0.00021917,3]
[349256990,1737079840266,-1100.87,0.00021917,3]
[349256991,1737079840275,-520.92102231,0.00021917,3]
[349256992,1737079840285,-500.68693851,0.00021917,3]
[349256993,1737079840294,-248.94755676,0.00021917,3]
[349256994,1737079840304,-500.0,0.00021917,3]
[349256995,1737079840313,-500.53260514,0.00021917,3]
[349256996,1737079840322,-24.4282449,0.00021917,3]
[349257051,1737079843846,-27.0885617,0.00021917,3]
[349257054,1737079843861,-22252.9331934,0.00021917,3]
[349257055,1737079843872,-492.20080953,0.00021917,3]
[349257057,1737079843882,-501.84304587,0.00021917,3]
[349257059,1737079843891,-500.56870978,0.00021917,3]
[349257061,1737079843901,-500.0,0.00021917,3]
[349257063,1737079843911,-519.60482518,0.00021917,3]
[349257065,1737079843921,-500.0,0.00021917,3]
[349257067,1737079843932,-501.71375022,0.00021917,3]
[349257069,1737079843942,-500.0,0.00021917,3]
[349257071,1737079843951,-502.99672666,0.00021917,3]
[349257073,1737079843961,-502.84615244,0.00021917,3]
[349257074,1737079843971,-506.89159046,0.00021917,3]
[349257076,1737079843980,-515.76909257,0.00021917,3]
[349257078,1737079843989,-591.72453859,0.00021917,3]
[349257080,1737079843998,-512.19601661,0.00021917,3]
[349257082,1737079844007,-417.79861115,0.00021917,3]
[349257085,1737079844017,-1000.0,0.00021917,7]
[349257088,1737079844026,-500.0,0.00021917,3]
[349257091,1737079844035,-510.68676806,0.00021917,3]
[349257094,1737079844044,-519.69877712,0.00021917,3]
[349257096,1737079844053,-500.0,0.00021917,3]
[349257098,1737079844063,-518.12907242,0.00021917,3]
[349257100,1737079844072,-500.0,0.00021917,3]
[349257102,1737079844082,-500.0,0.00021917,3]
[349257104,1737079844091,-501.2635028,0.00021917,3]
[349257106,1737079844101,-500.0,0.00021917,3]
[349257108,1737079844110,-543.79593865,0.00021917,3]
[349257110,1737079844121,-507.80210442,0.00021917,3]
[349257112,1737079844130,-6379.3,0.00021917,3]
[349257113,1737079844139,-511.36319844,0.00021917,3]
[349257115,1737079844149,-504.61984401,0.00021917,3]
[349257117,1737079844158,-658.58432,0.00021969,3]
[349257119,1737079844168,-1456.4,0.00021988,3]
[349257121,1737079844178,-500.0,0.00021989,2]
[349257123,1737079844188,-500.59118221,0.00021989,2]
[349257125,1737079844198,-500.0,0.00021989,2]
[349257127,1737079844208,-500.0,0.00021989,2]
[349257129,1737079844218,-500.0,0.00021989,2]
[349257131,1737079844227,-500.0,0.00021989,2]
[349257133,1737079844237,-500.0,0.00021989,2]
[349257134,1737079844246,-500.0,0.00021989,2]
[349257136,1737079844257,-500.0,0.00021989,2]
[349257138,1737079844267,-500.0,0.00021989,2]
[349257140,1737079844277,-500.0,0.00021989,2]
[349257142,1737079844286,-500.0,0.00021989,2]
[349257144,1737079844297,-500.0,0.00021989,2]
[349257146,1737079844306,-500.0,0.00021989,2]
[349257148,1737079844317,-404.8498669,0.00021989,2]
[349257150,1737079844328,-500.0,0.00021989,2]
[349257152,1737079844338,-500.0,0.00021989,2]
[349257154,1737079844348,-500.0,0.00021989,2]
[349257156,1737079844358,-500.0,0.00021989,2]
[349257158,1737079844369,-500.0,0.00021989,2]
[349257160,1737079844379,-500.0,0.00021989,2]
[349257162,1737079844389,-500.0,0.00021989,2]
[349257163,1737079844398,-500.0,0.00021989,2]
[349257165,1737079844408,-414.0876618,0.00021989,2]
[349257167,1737079844419,-500.0,0.00021989,2]
[349257169,1737079844430,-500.0,0.00021989,2]
[349257171,1737079844440,-500.0,0.00021989,2]
[349257173,1737079844450,-500.0,0.00021989,2]
[349257175,1737079844459,-500.0,0.00021989,2]
[349257177,1737079844470,-500.0,0.00021989,2]
[349257179,1737079844480,-581.7406773,0.00021989,2]
[349257181,1737079844492,-500.0,0.00021989,2]
[349257183,1737079844502,-500.0,0.00021989,2]
[349257185,1737079844513,-581.34793551,0.00021989,2]
[349257187,1737079844523,-500.0,0.00021989,2]
[349257189,1737079844534,-500.0,0.00021989,2]
[349257191,1737079844544,-500.0,0.00021989,2]
[349257193,1737079844554,-500.0,0.00021989,2]
[349257195,1737079844563,-500.0,0.00021989,2]
[349257197,1737079844573,-1456.4,0.00021989,3]
[349257199,1737079844582,-1456.4,0.00021989,3]
[349257201,1737079844592,-1456.4,0.00021989,3]
[349257203,1737079844602,-1456.4,0.00021989,3]
[349257204,1737079844612,-1456.4,0.00021989,3]
[349257206,1737079844623,-1456.4,0.00021989,3]
[349257208,1737079844633,-113948.38955885,0.0002199,7]
[349257210,1737079844643,-151.884181,0.0002199,7]
[349257212,1737079844661,-151.0,0.0002199,7]
[349257214,1737079844672,-151.528724,0.0002199,7]
[349257216,1737079844682,-151.0,0.0002199,7]
[349257218,1737079844696,-155.338106,0.0002199,7]
[349257220,1737079844711,-151.0,0.0002199,7]
[349257222,1737079844720,-151.0,0.0002199,7]
[349257223,1737079844732,-151.0,0.0002199,7]
[349257225,1737079844742,-151.0,0.0002199,7]
[349257227,1737079844752,-151.0,0.0002199,7]
[349257229,1737079844761,-151.0,0.0002199,7]
[349257231,1737079844771,-151.0,0.0002199,7]
[349257233,1737079844781,-151.0,0.0002199,7]
[349257235,1737079844790,-151.0,0.0002199,7]
[349257237,1737079844800,-151.643237,0.0002199,7]
[349257239,1737079844809,-151.541356,0.0002199,7]
[349257241,1737079844819,-153.416617,0.0002199,7]
[349257242,1737079844828,-151.0,0.0002199,7]
[349257244,1737079844838,-151.0,0.0002199,7]
[349257246,1737079844848,-151.0,0.0002199,7]
[349257248,1737079844858,-742.547044,0.0002199,7]
[349257250,1737079844867,-742.547044,0.0002199,7]
[349257252,1737079844877,-151.0,0.0002199,7]
[349257254,1737079844886,-269.826912,0.0002199,7]
[349257256,1737079844895,-151.0,0.0002199,7]
[349257257,1737079844904,-151.0,0.0002199,7]
[349257259,1737079844913,-151.0,0.0002199,7]
[349257261,1737079844923,-170.23666,0.0002199,7]
[349257263,1737079844935,-151.0,0.0002199,7]
[349257265,1737079844944,-151.0,0.0002199,7]
[349257267,1737079844954,-154.108948,0.0002199,7]
[349257269,1737079844963,-151.0,0.0002199,7]
[349257270,1737079844973,-273.698216,0.0002199,7]
[349257272,1737079844982,-273.698216,0.0002199,7]
[349257274,1737079844993,-152.753506,0.0002199,7]
[349257276,1737079845002,-164.304526,0.0002199,7]
[349257278,1737079845012,-10130.17441894,0.00022,14]
[349257280,1737079845022,-658.58432,0.00022038,3]
[349257282,1737079845032,-199.82728685,0.0002204,2]